Cogmind - Beta 10.1 @@@ ROGUE MODE // 2020.10.28 @ 19:50:41 Player: Aldgillis Result: Self-destructed Performance ------------- Evolutions (2) 1000 Regions Visited (7) 1400 Robots Destroyed (12) 60 Value Destroyed (459) 459 Prototype IDs (5) 100 Alien Tech Used (0) 0 Bonus (500) 500 TOTAL SCORE: 3519 Bonus ------- Entered Garrisons 200 Aligned with FarCom 300 Cogmind --------- Core Integrity 53/550 Matter 162/300 Energy 100/100 System Corruption 2% Temperature Cool (0) Movement Core (50) Location -8/Garrison Parts ------- > --- POWER (2) -------- (None) > --- PROPULSION (3) --- (None) > --- UTILITY (4) ------ Skeleton Box > --- WEAPON (2) ------- (None) > --- INVENTORY (4) ---- Long-range Sensor Array Maneuvering Thrusters Relay Coupler [Sentry] (17) Peak State ------------ > --- POWER ------------ Light Ion Engine > --- PROPULSION ------- Flight Unit Flight Unit > --- UTILITY ---------- Visual Processing Unit Signal Interpreter Skeleton Box > --- WEAPON ----------- Longsword +1 > --- INVENTORY -------- Sensor Array Long-range Sensor Array Light Assault Rifle Mining Laser [Rating: 20] Favorites ----------- Power Light Ion Engine Engine Light Ion Engine Propulsion Flight Unit Treads Light Treads Leg Aluminum Leg Flight Unit Flight Unit Utility Visual Processing Unit Device Sensor Array Storage Small Storage Unit Processor Visual Processing Unit Weapon Longsword +1 Energy Gun Medium Laser Ballistic Gun Assault Rifle Special Weapon Mining Laser Slashing Weapon Longsword +1 Build | -11 -10 -9 -9 -9 -8 -8 -8 ------- Run | Scr Mat Mat Min Exi Min Mat Gar Slots Evolved 4 | . . 2 . . . 2 . Power 1 | . . 1 . . . . . Propulsion 1 | . . . . . . 1 . Utility 2 | . . 1 . . . 1 . Weapon . | . . . . . . . . Parts Attached 33 | 8 7 . 8 5 3 1 1 Power 3 | 2 1 . . . . . . Engine 3 | 2 1 . . . . . . Core . | . . . . . . . . Reactor . | . . . . . . . . Propulsion 6 | 3 2 . 1 . . . . Treads 2 | 2 . . . . . . . Leg 1 | 1 . . . . . . . Wheel . | . . . . . . . . Hover . | . . . . . . . . Flight 3 | . 2 . 1 . . . . Utility 16 | 1 2 . 4 4 3 1 1 Device 11 | . 1 . 3 4 2 . 1 Storage 1 | 1 . . . . . . . Processor 4 | . 1 . 1 . 1 1 . Hackware . | . . . . . . . . Protection . | . . . . . . . . Artifact . | . . . . . . . . Weapon 8 | 2 2 . 3 1 . . . Energy Gun 2 | 1 1 . . . . . . Energy Cannon . | . . . . . . . . Ballistic Gun 2 | 1 1 . . . . . . Ballistic Cannon . | . . . . . . . . Launcher . | . . . . . . . . Special Weapon 3 | . . . 3 . . . . Impact Weapon . | . . . . . . . . Slashing Weapon 1 | . . . . 1 . . . Piercing Weapon . | . . . . . . . . Special Melee Weapon . | . . . . . . . . Unidentified Prototypes 5 | . . . 1 3 . 1 . Parts Lost 7 | . 2 1 . . 2 1 1 Power 1 | . . . . . 1 . . Propulsion 4 | . . 1 . . 1 1 1 Utility . | . . . . . . . . Weapon 2 | . 2 . . . . . . Highest Loss Streak 2 | . 1 1 . . 2 1 1 Average Slot Usage (%) 71 | . 86 66 79 84 77 45 41 Engine 8 | . 14 11 11 11 11 . . Treads 5 | . 24 . . . . . . Flight 13 | . 3 22 22 22 22 9 6 Device 8 | . 4 11 11 10 11 9 7 Storage 2 | . 12 . . . . . . Processor 15 | . 1 11 12 22 22 18 20 Energy Gun 1 | . 7 . . . . . . Ballistic Gun 4 | . 17 11 . . . . . Special Weapon 5 | . . . 22 15 . . . Slashing Weapon 4 | . . . . 3 11 9 6 Naked Turns 37 | . . . . . . . 37 Heaviest Build 13 | 13 13 5 8 8 7 4 4 Greatest Support 40 | 40 40 8 8 8 8 4 4 Greatest Overweight (x) 1 | . . 1 . . 1 . . Average Overweight (x) . | . . . . . . . . Largest Inventory Capacity 6 | 6 6 4 4 4 4 4 4 Average Capacity 4 | 5 5 4 4 4 4 4 4 Most Carried 6 | 4 6 3 4 4 4 4 4 Average Carried 3 | 1 2 1 3 3 4 4 3 Final Capacity 6 | 6 4 4 4 4 4 4 4 Final Carried 4 | 2 1 3 4 4 4 4 3 Class Distribution -------------------- 33% | Scavenger-Scout 28% | Mutant 23% | Scout 14% | Scavenger-Mutant Dominant Class ---------------- Mutant | -10/Materials Scavenger-Mutant | -9/Materials Scavenger-Mutant | -9/Mines Scavenger-Scout | -9/Exiles Scavenger-Scout | -8/Mines Scout | -8/Materials Scout | -8/Garrison Resources | -11 -10 -9 -9 -9 -8 -8 -8 ----------- Run | Scr Mat Mat Min Exi Min Mat Gar Matter Collected 475 | 248 142 . 31 . . . 54 Remotely . | . . . . . . . . Salvage Created 317 | . 263 . . . . . 54 Parts 29 | . 21 . . . . . 8 Haulers Intercepted . | . . . . . . . . Recyclers Shooed . | . . . . . . . . Parts Field Recycled . | . . . . . . . . Retrieved Matter . | . . . . . . . . Parts Self-Destructed . | . . . . . . . . Prevented . | . . . . . . . . Kills | -11 -10 -9 -9 -9 -8 -8 -8 ------- Run | Scr Mat Mat Min Exi Min Mat Gar Combat Hostiles Destroyed 11 | . 8 . . . . . 3 Melee 3 | . . . . . . . 3 Guns 8 | . 8 . . . . . . Classes Destroyed 3 | . 3 . . . . . . Watcher 1 | . 1 . . . . . . Swarmer 6 | . 3 . . . . . 3 Grunt 5 | . 5 . . . . . . Best Kill Streak 5 | . 5 . . . . . 2 Combat Bots Only 4 | . 4 . . . . . 2 Max Kills in Single Turn 2 | . 2 . . . . . 1 Gunslinging 1 | . 1 . . . . . . Exploded . | . . . . . . . . Melee 1 | . . . . . . . 1 Uniques/NPCs Destroyed . | . . . . . . . . Combat | -11 -10 -9 -9 -9 -8 -8 -8 -------- Run | Scr Mat Mat Min Exi Min Mat Gar Damage Taken 1262 | . 596 35 . . 80 . 551 Core 647 | . 123 12 . . 15 . 497 Absorbed by Shields 75 | . . . . . . . 75 Core Remaining (%) 81 | 100 50 . . . 93 . . Volleys Fired 32 | . 27 5 . . . . . Largest 2 | . 2 1 . . . . . Hottest 70 | . 70 20 . . . . . Shots Fired 47 | . 42 5 . . . . . Gun 47 | . 42 5 . . . . . Cannon . | . . . . . . . . Launcher . | . . . . . . . . Special . | . . . . . . . . Kinetic 32 | . 27 5 . . . . . Thermal 15 | . 15 . . . . . . Explosive . | . . . . . . . . Electromagnetic . | . . . . . . . . Robot Hit Streak 9 | . 9 3 . . . . . Robot Miss Streak 3 | . 3 1 . . . . . Penetration Max . | . . . . . . . . Secondary Targets 1 | . 1 . . . . . . Max Gunslinging Chain 1 | . 1 . . . . . . Shots Hit Robots 35 | . 30 3 . . . . 2 Core Hits 19 | . 14 . . . . . 5 Critical Hits . | . . . . . . . . Critical Kills . | . . . . . . . . Critical Parts Destroyed . | . . . . . . . . Melee Attacks 14 | . . . . . . . 14 Impact . | . . . . . . . . Slashing 14 | . . . . . . . 14 Piercing . | . . . . . . . . Sneak Attacks . | . . . . . . . . Combat Hostiles . | . . . . . . . . Follow-up Attacks . | . . . . . . . . Damage Inflicted 539 | . 410 18 . . . . 111 Guns 428 | . 410 18 . . . . . Cannons . | . . . . . . . . Explosions . | . . . . . . . . Melee 88 | . . . . . . . 88 Ramming 23 | . . . . . . . 23 Kinetic 278 | . 260 18 . . . . . Thermal 150 | . 150 . . . . . . Explosive . | . . . . . . . . Electromagnetic . | . . . . . . . . Impact . | . . . . . . . . Slashing 88 | . . . . . . . 88 Piercing . | . . . . . . . . Highest Corruption 3 | . . . 3 3 3 . 2 Average Corruption 2 | . . . 3 3 3 . 2 Corruption Purged . | . . . . . . . . Effects 10 | . . . 1 6 3 . . Message Errors 3 | . . . 1 2 . . . Matter Fused 5 | . . . . 2 3 . . Heat Flow Errors 2 | . . . . 2 . . . Overload Shots . | . . . . . . . . Overflow Damage 7 | . . . . . . . 7 Projectiles . | . . . . . . . . Explosions . | . . . . . . . . Melee 7 | . . . . . . . 7 Knockbacks . | . . . . . . . . Impact . | . . . . . . . . Kinetic . | . . . . . . . . Secondary . | . . . . . . . . Self-Inflicted Damage 11 | . . . . . . . 11 Shots . | . . . . . . . . Rammed 6 | . . . . . . . 6 Targets Rammed 6 | . . . . . . . 6 Kicked . | . . . . . . . . Crushed . | . . . . . . . . Highest Temperature 271 | . 195 3 . 271 1 . . Average Temperature 82 | . 74 1 . 113 1 . . Received Heat Transfer 405 | . 252 9 . . 45 . 99 Siege Activations . | . . . . . . . . Robots Corrupted . | . . . . . . . . Combat Hostiles . | . . . . . . . . Parts Fried . | . . . . . . . . Impact Corruptions . | . . . . . . . . Robots Melted . | . . . . . . . . Combat Hostiles . | . . . . . . . . Parts Melted . | . . . . . . . . Heat Transferred 444 | . 444 . . . . . . Parts Sabotaged . | . . . . . . . . Parts Stolen . | . . . . . . . . Parts Stripped . | . . . . . . . . Power Chain Reactions . | . . . . . . . . Missiles Intercepted . | . . . . . . . . Alert | -11 -10 -9 -9 -9 -8 -8 -8 ------- Run | Scr Mat Mat Min Exi Min Mat Gar Peak Influence 237 | . 237 160 58 . . . 226 Initial 100 | . . 100 58 . . . . Average 57 | . 114 133 58 . . . 91 Maximum Alert Level 1 | . 1 . . . . . 1 Low Security (%) 87 | 100 61 100 100 . 100 100 90 Level 1 12 | . 38 . . . . . 9 Level 2 . | . . . . . . . . Level 3 . | . . . . . . . . Level 4 . | . . . . . . . . Level 5 . | . . . . . . . . High Security . | . . . . . . . . Max Security . | . . . . . . . . Squads Dispatched 3 | . 1 1 1 . . . . Investigation 2 | . 1 . 1 . . . . Extermination . | . . . . . . . . Reinforcement 1 | . . 1 . . . . . Assault . | . . . . . . . . Garrison . | . . . . . . . . Intercept . | . . . . . . . . Construction Impeded . | . . . . . . . . Haulers Reinforced . | . . . . . . . . Stealth | -11 -10 -9 -9 -9 -8 -8 -8 --------- Run | Scr Mat Mat Min Exi Min Mat Gar Distress Signals 3 | . 1 1 . . . 1 . Communications Jammed . | . . . . . . . . Distress Signals . | . . . . . . . . Times Spotted 58 | . 13 7 . . 10 2 26 Peak Tracking Total 16 | . 4 7 . . 6 2 16 Tactical Retreats 7 | . . . . . 3 1 3 Traps | -11 -10 -9 -9 -9 -8 -8 -8 ------- Run | Scr Mat Mat Min Exi Min Mat Gar Traps Triggered 5 | . 1 . . . . . 4 Indirectly . | . . . . . . . . Trap Hack Attempts . | . . . . . . . . Triggered . | . . . . . . . . Disarmed . | . . . . . . . . Reprogrammed . | . . . . . . . . Reused . | . . . . . . . . Traps Extracted . | . . . . . . . . Installed . | . . . . . . . . Triggered . | . . . . . . . . Machines | -11 -10 -9 -9 -9 -8 -8 -8 ---------- Run | Scr Mat Mat Min Exi Min Mat Gar Machines Disabled 1 | . . . . . . . 1 Max in Single Turn 1 | . . . . . . . 1 Garrison Relay 1 | . . . . . . . 1 Machines Sabotaged . | . . . . . . . . Garrisons Compromised . | . . . . . . . . Overloaded Fab Kills . | . . . . . . . . Fab Network Shutdowns . | . . . . . . . . Hacking | -11 -10 -9 -9 -9 -8 -8 -8 --------- Run | Scr Mat Mat Min Exi Min Mat Gar Machines Accessed 9 | . 1 1 1 4 1 1 . Terminals 1 | . . . . . 1 . . Fabricators . | . . . . . . . . Repair Stations . | . . . . . . . . Recycling Units 2 | . 1 1 . . . . . Scanalyzers . | . . . . . . . . Garrison Access 1 | . . . . . . 1 . Total Hacks 56 | . 2 1 1 49 2 1 . Successful 54 | . 1 1 1 49 1 1 . Failed 2 | . 1 . . . 1 . . Catastrophic . | . . . . . . . . Database Lockouts . | . . . . . . . . Manual 1 | . . . . 1 . . . Terminals 2 | . . . . . 2 . . Fabricators . | . . . . . . . . Repair Stations . | . . . . . . . . Recycling Units 3 | . 2 1 . . . . . Scanalyzers . | . . . . . . . . Garrison Access 1 | . . . . . . 1 . Terminal Hacks 51 | . . . 1 49 1 . . Record 50 | . . . . 49 1 . . Open Door 1 | . . . 1 . . . . Fabricator Hacks . | . . . . . . . . Repair Station Hacks . | . . . . . . . . Recycling Unit Hacks 2 | . 1 1 . . . . . Report Inventory 2 | . 1 1 . . . . . Scanalyzer . | . . . . . . . . Garrison Access Hacks 1 | . . . . . . 1 . Unlock Access 1 | . . . . . . 1 . Unauthorized Hacks . | . . . . . . . . Terminals . | . . . . . . . . Fabricators . | . . . . . . . . Repair Stations . | . . . . . . . . Recycling Units . | . . . . . . . . Scanalyzers . | . . . . . . . . Garrison Access . | . . . . . . . . Data Cores Recovered . | . . . . . . . . Used . | . . . . . . . . Hacking Detections 3 | . . 1 . . 1 1 . Full Trace Events . | . . . . . . . . Feedback Events . | . . . . . . . . Feedback Blocked . | . . . . . . . . Robot Schematics Acquired . | . . . . . . . . Robots Built . | . . . . . . . . Matter . | . . . . . . . . Time . | . . . . . . . . Total Robot Build Rating . | . . . . . . . . Part Schematics Acquired . | . . . . . . . . Parts Built . | . . . . . . . . Matter . | . . . . . . . . Time . | . . . . . . . . Total Part Build Rating . | . . . . . . . . Parts Repaired . | . . . . . . . . Time . | . . . . . . . . Parts Recycled . | . . . . . . . . Recycled Matter . | . . . . . . . . Retrieved Matter . | . . . . . . . . Retrieved Components . | . . . . . . . . Parts Scanalyzed . | . . . . . . . . Part Schematics Acquired . | . . . . . . . . Parts Damaged . | . . . . . . . . Bothacking | -11 -10 -9 -9 -9 -8 -8 -8 ------------ Run | Scr Mat Mat Min Exi Min Mat Gar Used RIF Installer . | . . . . . . . . Robots Hacked . | . . . . . . . . Non-combat . | . . . . . . . . Combat . | . . . . . . . . Robot Hacks Applied . | . . . . . . . . Relay Couplers Released 4 | . . . . . . . 4 Machine Destruction 4 | . . . . . . . 4 Robots Rewired . | . . . . . . . . Allies Hacked . | . . . . . . . . Hacks Repelled . | . . . . . . . . Allies | -11 -10 -9 -9 -9 -8 -8 -8 -------- Run | Scr Mat Mat Min Exi Min Mat Gar Total Allies . | . . . . . . . . Largest Group . | . . . . . . . . Highest-Rated Group . | . . . . . . . . Highest-Rated Ally . | . . . . . . . . Total Orders . | . . . . . . . . Ally Attacks . | . . . . . . . . Total Damage . | . . . . . . . . Kills . | . . . . . . . . Allies Corrupted . | . . . . . . . . Allies Melted . | . . . . . . . . Intel | -11 -10 -9 -9 -9 -8 -8 -8 ------- Run | Scr Mat Mat Min Exi Min Mat Gar Robot Analysis Total . | . . . . . . . . Derelict Logs Recovered . | . . . . . . . . Drone Launches . | . . . . . . . . Drone Recoveries . | . . . . . . . . Exploration | -11 -10 -9 -9 -9 -8 -8 -8 ------------- Run | Scr Mat Mat Min Exi Min Mat Gar Turns Passed 1601 | 125 354 46 137 315 208 208 208 Spaces Moved 2181 | 77 235 93 292 789 370 152 173 Core 72 | 14 . . . . . . 58 Treads 198 | 63 135 . . . . . . Legs . | . . . . . . . . Wheels . | . . . . . . . . Hover . | . . . . . . . . Flight 1911 | . 100 93 292 789 370 152 115 Fastest Speed 37 | 50 37 37 37 37 37 40 40 Average Speed 49 | 140 107 37 37 37 37 40 43 Slowest Speed 160 | 160 160 120 37 37 120 40 50 Overloaded Moves . | . . . . . . . . Propulsion Burnouts . | . . . . . . . . Robots Hopped . | . . . . . . . . Cave-ins Triggered . | . . . . . . . . Exploration Rate (%) 39 | 6 29 13 48 95 69 15 38 Regions Visited 7 Branch Regions 3 Pre-discovered Areas 2 | . . . 1 1 . . . Known Exits Taken 4 | . . . 1 1 1 1 . Unknown Exits Taken 3 | 1 1 1 . . . . . Scrap Searched 2 | . . . 1 . 1 . . Spaces Dug 1 | . . . . . . . 1 Terrain Destroyed 1 | . . . . . . . 1 Melee 1 | . . . . . . . 1 Projectile . | . . . . . . . . AOE . | . . . . . . . . Terrain Rammed . | . . . . . . . . Walls Destroyed . | . . . . . . . . Machines Disabled . | . . . . . . . . Actions | -11 -10 -9 -9 -9 -8 -8 -8 --------- Run | Scr Mat Mat Min Exi Min Mat Gar Total 2645 | 94 294 99 319 811 438 298 292 Wait 281 | . 9 . 14 12 65 142 39 Move 2175 | 76 234 92 291 788 369 152 173 Hop . | . . . . . . . . Pick Up 27 | 9 9 2 4 1 . 1 1 Fast Attach 9 | . 2 . 1 3 1 2 . Attach 13 | 7 1 . 4 . . . 1 Detach 1 | . . . 1 . . . . Swap 12 | 1 4 . 3 2 2 . . Drop 18 | 1 8 . 1 5 1 1 1 Fire 32 | . 27 5 . . . . . Melee 14 | . . . . . . . 14 Ram 6 | . . . . . . . 6 Kick . | . . . . . . . . Crush . | . . . . . . . . Escape Stasis 57 | . . . . . . . 57 Rewire . | . . . . . . . . Trap . | . . . . . . . . Miscellaneous . | . . . . . . . . Route ------- -11/Scrapyard -10/Materials -9/Materials (discovered 2 exits: *Min / [*Sto]) -9/Mines (discovered 2 exits: *Mat / *Exi) -9/Exiles -8/Mines -8/Materials -8/Garrison History --------- Turn | Location | Event 8 | -11/Scrapyard | Discovered new exit (range 15) 126 | -11/Scrapyard | Entered Materials 302 | -10/Materials | Build established: Mutant 473 | -10/Materials | Discovered new exit (range 18) 480 | -10/Materials | Entered another Materials area 480 | -9/Materials | Evolved 2 slots: Power x1, Utility x1 481 | -9/Materials | Discovered new exit (range 17) 513 | -9/Materials | Discovered new exit (range 18) 526 | -9/Materials | Entered Mines 538 | -9/Mines | Met a Derelict shopkeep closing up shop 578 | -9/Mines | Found a damaged Exp. Sensor Array with a note attached 579 | -9/Mines | Found Prototype Device 580 | -9/Mines | Identified Exp. Sensor Array 629 | -9/Mines | Discovered new exit (range 11) 631 | -9/Mines | Learned location of Storage (-9) 662 | -9/Mines | Deemed a non-threat by the Exiles lab entrance 662 | -9/Mines | Discovered new exit (range 5) 663 | -9/Mines | Identified exit to Exiles 663 | -9/Mines | Entered Exiles 672 | -9/Exiles | Met 8R-AWN 679 | -9/Exiles | Met EX-HEX 692 | -9/Exiles | Met EX-DEC 703 | -9/Exiles | Learned location of Zion (-7) 728 | -9/Exiles | Discovered new exit (range 15) 757 | -9/Exiles | Visited The Gauntlet 835 | -9/Exiles | Met EX-BIN 844 | -9/Exiles | Aligned with FarCom system 845 | -9/Exiles | Given EX-Vault access code 871 | -9/Exiles | Opened EX-Vault 873 | -9/Exiles | Found Prototype Device 874 | -9/Exiles | Identified Skeleton Box 877 | -9/Exiles | Found Prototype Device 877 | -9/Exiles | Identified Supersonic Drone Bay 880 | -9/Exiles | Found Prototype Slashing Weapon 880 | -9/Exiles | Identified Longsword +1 908 | -9/Exiles | Warned to stay clear of 0b10 Research branches 954 | -9/Exiles | Build established: Scavenger-Scout 978 | -9/Exiles | Identified exit to Mines 978 | -9/Exiles | Stole two prototypes: Longsword +1, Skeleton Box 978 | -9/Exiles | Entered Mines 1006 | -8/Mines | Discovered new exit (range 13) 1184 | -8/Mines | Identified exit to Materials 1186 | -8/Mines | Entered Materials 1186 | -8/Materials | Evolved 2 slots: Propulsion x1, Utility x1 1394 | -8/Materials | Identified exit to Garrison 1394 | -8/Materials | Entered Garrison 1410 | -8/Garrison | Triggered checkpoint 1483 | -8/Garrison | Garrison Relay disabled 1486 | -8/Garrison | Build established: Scout 1550 | -8/Garrison | Triggered checkpoint 1550 | -8/Garrison | Released all parts (5) 1561 | -8/Garrison | Core integrity fell below 50% 1576 | -8/Garrison | Triggered checkpoint 1589 | -8/Garrison | Core integrity fell below 20% 1602 | -8/Garrison | Self-destructed Last Messages --------------- Field strength at 82. Field strength at 73. Field strength at 67. Field strength at 61. Field strength at 55. Field strength at 49. Field strength at 41. Field strength at 35. Field strength at 27. Field strength at 19. Field strength at 9. Stasis field depleted. Slammed into S-10 Pest. S-10 Pest destroyed. Destabilizing: System corrupted (+2). Acquired 15 matter. Slammed into S-10 Pest. S-10 Pest destroyed. Acquired 20 matter. [Achievement: This Is Interesting...] Map ----- +----------------------------------------------------+ | ??????????????????????????????????? | | ??????????????????????????????????? | | ????????????????????????????????????# ## ## | | ????????????????????????????????????# ## ## | | ????????????????????????????????????" | | ????????????????????????????????????" | | ????????????????????????????????????" | | ????????????????????????????????????" | | ????????????????????????????????????# ## ##! | | ??????????????????????????########### ## ## / | | ??????????????????????????# [ = | | ??????????????????????????# =% = | | ??????????????????????????# ######## | | ??????????????????????????#g #??????## ##""""## | | ??????????????????????????# #???????# #??????# | | ????????????????########### #???????# #??????# | | ????????????????#=g g Y #???????# #??????# | | ??????????????### ######### #???????# #??????# | | ??????????????# [######### #???????# #??????# | | ?????????# + g g *g ## #???????# #??????# | | ??????????????# ######g## ??????? #??????# | | ??????????????# #????#g## ?????? #??????# | | ??????????????### #????#s## ###?????####??????# | | ??????????s?????# #????#s## #?????????????????### | | ????????????????#g#????#s## #???????????????????? | | ????????????????# gg???# @# #???????????????????? | | ????????????????###????#### #???????????????????? | | ??????????????????????????? #???????????????????? | | ??????????????????????????? #???????????????????? | | ??????????????????????????? #???????????????????? | | ??????????????????????????? ????????????????????? | | ??????????????????????????? ????????????????????? | | ??????????????????????????? ????????????????????? | | ?????????????????????????????????????????????????? | | ?????????????????????????????????????????????????? | | ?????????????????????????????????????????????????? | | ?????????????????????????????????????????????????? | | ?????????????????????????????????????????????????? | | ?????????????????????????????????????????????????? | | ?????????????????????????????????????????????????? | | ?????????????????????????????????????????????????? | | ?????????????????????????????????????????????????? | | ?????????????????????????????????????????????????? | | ?????????????????????????????????????????????????? | | ?????????????????????????????????????????????????? | | ?????????????????????????????????????????????????? | | ?????????????????????????????????????????????????? | | ?????????????????????????????????????????????????? | | ?????????????????????????????????????????????????? | | ?????????????????????????????????????????????????? | +----------------------------------------------------+ Best States ------------- Heat Dissipation 31 Energy Generation 10 Energy Capacity 250 Matter Stores 300 Matter Capacity 300 Sight Range 18 Robot Scan Range 20 Terrain Scan Density 10 Evasion (%) 62 Recoil Reduction 2 Item Schematics ----------------- None Robot Schematics ------------------ None Fabricated ------------ Nothing Alien Tech Used ----------------- None Achievements -------------- This Is Interesting... Challenges ------------ None Game ------ Seed HeatPowerKatana Manual? 0 Play Time 00:39:55 Cumulative 40.4 hours Start 2020.10.28 @ 19:10:59 End 2020.10.28 @ 19:50:41 Sessions 1 Manual Loads 0 Difficulty Rogue Special Mode None Game No. 45 Rogue 45 Adventurer 0 Explorer 0 Win Type - Total 1 Types 1/0/0/0/0/0/0/0/0 Lore% 27 Gallery% 40 Achievement% 30 Wizard Run 0 Options --------- ASCII 0 Keyboard 0 Movement Mouse Keybinds 0 Fullscreen 1 Font 18/X11 Map View 76x50 Tactical HUD 0 Map Filters NONE Filters NONE Steam 1 RUN: 1af7ce01-1f40-45cd-bc25-63729f6c40b3